bitfinex/quotes_ETHUSD_20220101
["timestamp","ask_amount","ask_price","bid_price","bid_amount"]
[1641026789359,3.77647821,3731.0,3729.9,11.24843164]
[1641026789559,5.08847821,3731.0,3729.9,11.24843164]
[1641026789757,1.0,3730.9,3730.5,2.66843194]
[1641026790060,1.0,3730.9,3730.6,0.00284211]
[1641026790501,1.28121773,3730.8,3730.6,0.00284211]
[1641026790702,1.28223283,3730.8,3730.6,0.00284211]
[1641026790901,0.99777734,3730.2,3730.0,0.00625265]
[1641026791103,0.99777734,3730.2,3729.6,0.00852635]
[1641026793703,3.69777734,3730.2,3729.6,0.00852635]
[1641026795154,2.11400022,3730.1,3729.6,0.00852635]
[1641026795354,2.09997251,3730.1,3729.6,0.00852635]
[1641026795552,2.10042662,3730.0,3729.6,0.00852635]
[1641026795853,0.92203524,3730.2,3729.6,0.00852635]
[1641026796453,1.98764457,3730.2,3729.6,0.00852635]
[1641026796654,0.92203524,3730.2,3729.6,0.00852635]
[1641026798599,1.52203524,3730.2,3729.6,0.00852635]
[1641026799001,0.6706,3730.0,3729.6,0.00852635]
[1641026799204,2.61534907,3729.9,3729.6,0.00852635]
[1641026799400,2.90338226,3729.9,3729.6,0.00852635]
[1641026799599,2.0025191,3729.8,3729.6,0.00852635]
[1641026799800,0.3,3729.9,3729.6,0.00852635]
[1641026800000,0.92203524,3730.2,3729.6,0.00852635]
[1641026800502,1.52203524,3730.2,3729.6,0.00852635]
[1641026800912,0.91282575,3729.9,3729.6,0.00852635]
[1641026801502,0.91373305,3729.9,3729.6,0.00852635]
[1641026802862,1.21373305,3729.9,3729.6,0.00852635]
[1641026803064,0.91373305,3729.9,3729.6,0.00852635]
[1641026804665,1.51373305,3729.9,3729.6,0.00852635]
[1641026806697,0.67062,3729.8,3729.6,0.00852635]
[1641026806899,1.51373305,3729.9,3729.6,0.00852635]
[1641026807298,0.0009073,3729.9,3729.6,0.00852635]
[1641026811549,1.0201562,3729.7,3729.6,0.00852635]
[1641026811951,1.3201562,3729.7,3729.6,0.00852635]
[1641026817045,1.6201562,3729.7,3729.6,0.00852635]
[1641026821106,1.6201562,3729.7,3729.5,0.63771937]
[1641026822908,2.2907562,3729.7,3729.5,0.63771937]
[1641026823710,3.2907562,3729.7,3729.5,0.63771937]
[1641026823909,1.3201562,3729.7,3729.5,0.63771937]
[1641026824960,0.3,3729.7,3729.5,0.63771937]
[1641026825258,0.6,3729.9,3729.5,0.63771937]
[1641026825458,0.3,3730.1,3729.5,0.63771937]
[1641026825857,2.19256524,3730.2,3729.5,0.63771937]
[1641026826257,0.67054,3730.0,3729.5,0.63771937]
[1641026826459,1.52203524,3730.2,3729.5,0.63771937]
[1641026826460,1.29385344,3730.1,3729.5,0.63771937]
[1641026826663,1.99385344,3730.1,3729.5,0.63771937]
[1641026829104,2.05153087,3730.8,3730.3,3.25]
[1641026829307,3.77647821,3731.0,3730.3,3.25]
[1641026829308,3.77647821,3731.0,3730.8,1.1292736]
[1641026829511,7.1128,3733.3,3731.0,3.11573861]
[1641026829706,7.5415,3733.7,3731.0,3.11573861]
[1641026829707,1.4391668,3731.3,3731.1,18.07117542]
[1641026829905,1.1141668,3731.3,3731.2,20.83391616]
[1641026830108,10.60597222,3732.4,3731.4,18.98]
[1641026830109,9.48708425,3732.4,3731.4,18.98]
[1641026830308,8.19639015,3732.4,3732.3,0.68230699]
[1641026830505,8.19639015,3732.4,3732.3,1.44620699]
[1641026830706,8.197527,3732.4,3732.3,1.44620699]
[1641026830905,0.57943548,3732.4,3732.3,2.44620699]
[1641026831106,0.57943548,3732.4,3732.3,3.41955982]
[1641026831762,0.57943548,3732.4,3732.3,1.7639]
[1641026832165,0.57943548,3732.4,3732.3,0.7639]
[1641026832365,0.57943548,3732.4,3732.0,0.66992]
[1641026832567,0.57943548,3732.4,3732.0,2.00711179]
[1641026833168,0.57943548,3732.4,3732.0,1.61182173]
[1641026833369,0.57943548,3732.4,3732.0,0.66992]
[1641026834169,0.57943548,3732.4,3732.0,1.73561981]
[1641026834370,0.57943548,3732.4,3732.1,0.01248344]
[1641026835493,0.57943548,3732.4,3732.1,0.85653836]
[1641026835697,0.57943548,3732.4,3732.2,0.66987]
[1641026835894,0.57943548,3732.4,3732.3,2.33372468]
[1641026836093,0.57943548,3732.4,3732.3,0.3]
[1641026836295,3.27943548,3732.4,3732.3,6.76060466]
[1641026836494,3.27943548,3732.4,3732.3,10.26060466]
[1641026836693,3.27943548,3732.4,3732.3,10.56060466]
[1641026836893,3.27943548,3732.4,3732.3,9.63956]
[1641026837096,3.27943548,3732.4,3732.3,11.6173204]
[1641026837293,3.27943548,3732.4,3732.3,9.33956]
[1641026837894,3.27943548,3732.4,3732.3,11.59213199]
[1641026838095,3.27943548,3732.4,3732.3,11.89213199]
[1641026838395,3.27943548,3732.4,3732.3,12.19213199]
[1641026838594,3.27943548,3732.4,3732.3,9.63956]
[1641026838796,2.57811897,3732.4,3732.3,9.93956]
[1641026839254,0.07044989,3733.1,3732.7,0.66965]
[1641026839458,0.07044989,3733.1,3733.0,3.51213155]
[1641026839855,0.07044989,3733.1,3733.0,6.93375983]
[1641026840055,0.07044989,3733.1,3733.0,7.82137237]
[1641026840458,0.007,3733.3,3733.1,3.9]
[1641026840656,0.007,3733.3,3733.2,6.84966989]
[1641026841256,0.007,3733.3,3733.2,4.5]
[1641026841455,0.007,3733.3,3733.2,8.0]
[1641026842056,0.007,3733.3,3733.2,10.9691395]
[1641026842260,0.007,3733.3,3733.2,10.96898394]
[1641026842458,0.007,3733.3,3733.2,8.6]
[1641026842995,0.007,3733.3,3733.2,8.0]
[1641026843798,0.007,3733.3,3733.2,7.0]
[1641026844201,0.007,3733.3,3733.2,3.5]
[1641026844401,0.007,3733.3,3732.8,0.07044788]
[1641026844602,0.84470857,3733.0,3732.8,0.07044788]
[1641026844803,0.00454739,3733.2,3732.8,0.07044788]
[1641026845200,0.00397896,3733.1,3732.1,3.0455]
[1641026845605,0.00341054,3733.0,3732.2,0.00113685]
[1641026846001,0.00284212,3732.9,3732.2,0.00113685]
[1641026846403,0.00227369,3732.8,3732.1,0.00170527]
[1641026846855,0.00170527,3732.7,3732.2,0.66984]
[1641026847057,0.00170527,3732.7,3732.3,2.3445832]
[1641026847255,0.00113685,3732.6,3732.3,1.0]
[1641026847655,0.00113685,3732.6,3732.3,2.37301784]
[1641026847856,0.00113685,3732.6,3732.2,1.96984]
[1641026848056,0.00113685,3732.6,3732.2,1.26984]
[1641026848255,0.00113685,3732.6,3732.2,0.66984]
[1641026848656,0.00113685,3732.6,3732.1,1.00170527]
[1641026848855,0.00113685,3732.6,3732.1,0.00170527]
[1641026849056,0.00113685,3732.6,3732.2,0.00113685]
[1641026849262,0.00113685,3732.6,3732.1,0.00170527]
[1641026852901,0.74212307,3733.2,3732.1,0.00170527]
[1641026853102,0.00111773,3732.6,3732.1,0.00284212]
[1641026853303,0.00223546,3732.6,3732.1,0.00284212]
[1641026854745,0.00223546,3732.6,3732.1,0.67270212]
[1641026855147,0.00223546,3732.6,3732.2,0.0022737]
[1641026856750,0.00113546,3732.6,3732.2,0.7345737]
[1641026856948,0.00113546,3732.6,3732.4,16.39965]
[1641026857149,0.00113546,3732.6,3732.5,5.6]
[1641026857350,0.00113546,3732.6,3732.5,21.33]
[1641026857550,0.00113546,3732.6,3732.5,16.73]
[1641026858004,0.00113546,3732.6,3732.5,1.0]
[1641026858603,0.00284211,3733.1,3732.6,3.22358312]
[1641026859004,0.00227369,3733.0,3732.8,0.66967]
[1641026859209,0.00227369,3733.0,3732.8,0.96967]
[1641026859409,0.007,3733.3,3732.9,2.40611718]
[1641026859611,0.007,3733.3,3732.9,3.08402669]
[1641026859811,0.00341054,3733.2,3732.9,5.45022594]
[1641026860208,0.00284211,3733.1,3733.0,0.66961]
[1641026860408,0.00284211,3733.1,3733.0,3.02528442]
[1641026860614,0.00284211,3733.1,3733.0,4.32528442]
[1641026860811,0.00284211,3733.1,3733.0,1.96961]
[1641026861650,0.00284211,3733.1,3733.0,6.87270991]
[1641026862255,5.8928,3735.1,3733.0,5.90310481]
[1641026862256,0.93169036,3733.9,3733.0,5.90310481]
[1641026862454,0.93169036,3733.9,3733.0,4.23349481]
[1641026863261,0.93169036,3733.9,3732.7,3.1279265]
[1641026863657,0.93169036,3733.9,3732.8,0.00170527]
[1641026863858,0.0009949,3733.8,3732.8,1.00170527]
[1641026864060,0.0009949,3733.8,3732.8,0.00170527]
[1641026864262,0.00341055,3733.7,3732.9,0.00113684]
[1641026864460,0.00341055,3733.7,3732.8,0.00170527]
[1641026864664,0.00284212,3733.6,3732.8,0.00170527]
[1641026865061,0.0022737,3733.5,3732.8,0.00170527]
[1641026865498,0.00170528,3733.4,3732.7,0.00227369]
[1641026865701,0.93401454,3732.9,3732.7,0.00227369]
[1641026866006,0.00113685,3733.3,3732.5,0.00341054]
[1641026866401,0.00341055,3733.7,3732.5,0.00341054]
[1641026866601,0.67332055,3733.7,3732.5,0.00341054]
[1641026866803,0.00284212,3733.6,3732.5,0.00341054]
[1641026867002,1.06595409,3733.2,3732.2,0.00511581]
[1641026868802,1.06595409,3733.2,3732.2,1.79370231]
[1641026869171,0.0022737,3733.5,3732.3,1.79313388]
[1641026869573,0.00170528,3733.4,3732.4,0.00397896]
[1641026869972,0.00113685,3733.3,3732.4,0.00397896]
[1641026870172,0.78355323,3733.2,3732.4,0.00397896]
[1641026870977,0.78355323,3733.2,3732.3,0.00454738]
[1641026873298,0.78355323,3733.2,3732.0,0.66991]
[1641026873601,0.78355323,3733.2,3732.1,0.00568423]
[1641026873997,0.78355323,3733.2,3731.9,0.00682108]
[1641026874403,0.00089921,3733.1,3731.9,0.00682108]
[1641026875805,0.00089921,3733.1,3732.0,1.34324044]
[1641026876205,0.00089921,3733.1,3732.1,0.00568423]
[1641026876647,0.82791078,3732.6,3732.1,0.00568423]
[1641026877050,1.42791078,3732.6,3732.1,0.00568423]
[1641026878049,1.42791078,3732.6,3731.9,0.00682108]
[1641026878649,0.67009,3732.5,3731.9,0.00682108]
[1641026878852,0.67009,3732.5,3731.4,0.00966319]
[1641026879753,1.27009,3732.5,3731.4,0.00966319]
[1641026880154,0.67009,3732.5,3731.4,0.00966319]
[1641026880396,0.82593043,3732.0,3731.4,0.00966319]
[1641026881397,0.97009,3732.5,3731.4,0.00966319]
[1641026882299,0.3,3732.5,3731.4,0.00966319]
[1641026882498,0.91287057,3732.4,3731.4,0.00966319]
[1641026884956,0.0008095,3732.3,3731.4,0.00966319]
[1641026887662,0.6709295,3732.3,3731.4,0.00966319]
[1641026887904,3.43372144,3732.3,3731.4,0.00966319]
[1641026888105,6.13372144,3732.3,3731.4,0.00966319]
[1641026888308,1.0,3732.2,3731.4,0.00966319]
[1641026888505,0.99337962,3731.6,3731.4,0.00966319]
[1641026888705,2.5599043,3732.1,3731.4,0.00966319]
[1641026888906,1.0,3732.0,3731.4,0.00966319]
[1641026889106,0.3,3732.1,3731.4,0.00966319]
[1641026889107,0.67014,3732.1,3731.4,0.00966319]
[1641026889312,0.3,3732.0,3731.4,0.00966319]
[1641026889511,0.97014,3732.1,3731.4,0.00966319]
[1641026889712,0.89868593,3731.9,3731.4,0.00966319]
[1641026889911,1.19868593,3731.9,3731.4,0.00966319]
[1641026890114,1.49868593,3731.9,3731.4,0.00966319]
[1641026890716,3.3709195,3732.3,3731.4,0.00966319]
[1641026891766,4.20993792,3732.3,3731.4,0.00966319]
[1641026892464,4.80993792,3732.3,3731.4,0.00966319]
[1641026893065,0.67015,3732.1,3731.4,0.00966319]
[1641026893264,0.97015,3732.1,3731.4,0.00966319]
[1641026893667,0.3,3732.1,3731.4,0.00966319]
[1641026894066,2.64038,3732.2,3731.4,0.00966319]
[1641026895801,0.67016,3732.1,3731.4,0.00966319]
[1641026896604,0.3,3732.2,3731.4,0.00966319]
[1641026896802,3.53901842,3732.3,3731.4,0.00966319]
[1641026897504,2.7,3732.3,3731.4,0.00966319]
[1641026897705,3.0,3732.3,3731.4,0.00966319]
[1641026897903,0.67012,3732.2,3731.4,0.00966319]
[1641026898402,3.0,3732.3,3731.4,0.00966319]
[1641026898603,2.7,3732.3,3731.4,0.00966319]
[1641026900054,3.0,3732.3,3731.4,1.35290363]
[1641026900257,3.3,3732.3,3731.4,1.35290363]
[1641026900454,3.3,3732.3,3731.5,0.00909477]
[1641026900654,2.7,3732.3,3731.5,0.00909477]
[1641026905309,2.7,3732.3,3731.4,0.00966319]
[1641026905513,3.3701,3732.3,3731.4,1.35290363]
[1641026905911,3.3701,3732.3,3731.5,0.00909477]
[1641026906847,3.3701,3732.3,3731.4,0.00966319]
[1641026910401,2.19925811,3732.2,3731.4,0.00966319]
[1641026910706,0.67012,3732.1,3731.4,0.00966319]
[1641026911104,2.15748399,3732.0,3731.4,0.00966319]
[1641026911306,2.45748399,3732.0,3731.4,0.00966319]
[1641026911509,0.3,3732.0,3731.4,0.00966319]
[1641026911906,0.97012,3732.1,3731.4,0.00966319]
[1641026912106,0.83315225,3732.0,3731.4,0.00966319]
[1641026913110,0.67015,3731.9,3731.4,0.00966319]
[1641026913508,0.97015,3731.9,3731.4,0.00966319]
[1641026913907,1.27015,3731.9,3731.4,0.00966319]
[1641026914147,2.16164636,3731.8,3731.4,0.00966319]
[1641026914755,1.27015,3731.9,3731.4,0.00966319]
[1641026914957,3.41484572,3731.9,3731.4,0.00966319]
[1641026915154,1.27015,3731.9,3731.4,0.00966319]
[1641026917356,0.97015,3731.9,3731.4,0.00966319]
[1641026917556,0.67015,3731.9,3731.4,0.00966319]
[1641026931768,0.3,3732.0,3731.4,0.00966319]
[1641026931970,1.71853457,3732.1,3731.4,0.00966319]
[1641026931971,0.67011,3732.1,3731.4,0.00966319]
[1641026932268,2.7,3732.3,3731.4,0.00966319]
[1641026933314,2.7,3732.3,3731.5,1.34324044]
[1641026933714,2.7,3732.3,3731.6,0.00852635]
[1641026935818,2.7,3732.3,3731.6,1.35176679]
[1641026936219,2.7,3732.3,3731.7,0.00795792]
[1641026936660,3.37006,3732.3,3731.7,0.00795792]
[1641026937464,3.37006,3732.3,3731.6,0.00852635]
[1641026938165,0.7719901,3732.2,3731.4,0.00966319]
[1641026938665,0.67012,3731.9,3731.4,0.00966319]
[1641026941413,0.7719901,3732.2,3731.4,0.00966319]
[1641026941610,1.0719901,3732.2,3731.4,0.00966319]
[1641026941809,2.1122401,3732.2,3731.4,0.00966319]
[1641026942411,3.7122401,3732.2,3731.4,0.00966319]
[1641026942611,0.67013,3731.8,3731.4,0.00966319]
[1641026944771,0.6701,3731.9,3731.4,0.00966319]
[1641026945971,0.9701,3731.9,3731.4,0.00966319]
[1641026946171,0.67013,3731.8,3731.4,0.00966319]
[1641026953072,0.97013,3731.8,3731.4,0.00966319]
[1641026953773,0.67015,3731.7,3731.4,0.00966319]
[1641026955176,2.67023,3731.5,3731.4,0.00966319]
[1641026955421,0.67023,3731.5,3731.4,0.00966319]
[1641026957030,3.11573861,3731.0,3730.8,1.1292736]
[1641026957230,3.11573861,3731.0,3730.2,0.0622]
[1641026957231,2.87995411,3730.5,3729.9,6.959]
[1641026957432,2.87995411,3730.5,3729.8,3.9084349]
[1641026957433,2.3675876,3730.4,3729.8,3.9084349]
[1641026957629,2.87995411,3730.5,3729.3,1.33258707]
[1641026957831,2.87995411,3730.5,3729.9,0.00852636]
[1641026958229,0.67041,3730.3,3729.9,0.00852636]
[1641026959266,2.87995411,3730.5,3730.1,0.01235073]
[1641026959665,2.87995411,3730.5,3730.2,0.00682109]
[1641026961366,2.87995411,3730.5,3730.4,0.88815359]
[1641026961766,2.87995411,3730.5,3730.4,0.89383783]
[1641026962264,2.87995411,3730.5,3730.4,0.00568424]
[1641026962669,2.87995411,3730.5,3730.2,0.00682109]
[1641026963521,2.87995411,3730.5,3730.1,0.00738951]
[1641026963921,2.87995411,3730.5,3730.0,0.00795793]
[1641026965026,2.87995411,3730.5,3729.9,0.91529994]
[1641026965427,3.55032411,3730.5,3730.0,0.00795793]
[1641026967466,3.55032411,3730.5,3729.7,1.34225027]
[1641026967667,3.55032411,3730.5,3729.8,0.00909478]
[1641026968069,3.55032411,3730.5,3729.7,0.0096632]
[1641026968267,3.55032411,3730.5,3729.4,0.01136847]
[1641026968469,3.55032411,3730.5,3729.3,0.01217813]
[1641026968470,3.55032411,3730.5,3729.6,0.90150651]
[1641026968871,3.55032411,3730.5,3729.7,0.0096632]
[1641026990166,3.50032411,3730.5,3729.7,0.0096632]
[1641026993710,3.45032411,3730.5,3729.7,0.0096632]
[1641026998759,3.45032411,3730.5,3729.6,0.90150651]
[1641026999364,2.95032411,3730.5,3729.6,0.90150651]
[1641027001914,2.95032411,3730.5,3729.8,1.33639129]
[1641027002311,2.95032411,3730.5,3729.9,0.00852636]
[1641027002513,0.67049,3730.4,3729.9,0.00852636]
[1641027002713,0.67049,3730.2,3729.9,1.34491765]
[1641027003113,0.67049,3730.2,3730.0,0.00795793]
[1641027008708,3.37049,3730.2,3730.0,0.00795793]
[1641027008909,3.37049,3730.2,3729.6,0.90150651]
[1641027008910,3.37049,3730.2,3729.8,0.00909478]
[1641027009313,3.37049,3730.2,3729.7,0.0096632]
[1641027010117,3.37049,3730.2,3729.5,0.01080005]
[1641027010720,3.37049,3730.2,3729.4,0.89742599]
[1641027010921,3.37049,3730.2,3729.4,2.23381728]
[1641027011122,3.37049,3730.2,3729.5,0.01080005]
[1641027013362,3.37049,3730.2,3729.5,1.34719134]
[1641027013662,3.37049,3730.2,3729.6,1.34662292]
[1641027014062,3.37049,3730.2,3729.7,0.0096632]
[1641027015913,3.37049,3730.2,3729.5,0.01080005]
[1641027023311,2.7,3730.2,3729.5,0.68115005]
[1641027023511,2.7,3730.2,3729.8,22.68789965]
[1641027023715,2.7,3730.2,3730.0,0.01295186]
[1641027024110,2.7,3730.2,3730.1,3.00738951]
[1641027024313,2.7,3730.2,3730.1,3.60738951]
[1641027024514,2.7,3730.2,3730.1,4.77518951]
[1641027024715,2.7,3730.2,3730.1,1.77518951]
[1641027025415,2.7,3730.2,3730.1,3.1115808]
[1641027025616,2.7,3730.2,3730.1,5.19475902]
[1641027026218,2.7,3730.2,3730.1,2.6437808]
[1641027026417,2.7,3730.2,3730.1,1.3437808]
[1641027027476,2.7,3730.2,3730.1,0.00738951]
[1641027028676,2.7,3730.2,3729.8,0.00909478]
[1641027028877,2.7,3730.2,3730.0,0.00795793]
[1641027029079,2.7,3730.2,3729.8,2.34548607]
[1641027029683,2.7,3730.2,3729.8,1.34548607]
[1641027030282,2.7,3730.2,3729.8,0.00909478]
[1641027034775,2.7,3730.2,3729.8,1.34548607]
[1641027035373,2.7,3730.2,3729.9,1.33639129]
[1641027035775,2.7,3730.2,3730.0,0.00795793]
[1641027035977,2.7,3730.2,3730.0,1.34434922]
[1641027036374,2.7,3730.2,3730.1,0.00738951]
[1641027037576,2.7,3730.2,3729.8,0.00909478]
[1641027038940,2.7,3730.2,3729.8,1.34548607]
[1641027039439,2.7,3730.2,3729.8,0.00909478]
[1641027040940,2.7,3730.2,3729.9,1.33639129]
[1641027041340,2.7,3730.2,3730.0,0.00795793]
[1641027043369,2.7,3730.2,3729.8,0.00909478]
[1641027051671,0.67045,3730.1,3729.8,0.00909478]
[1641027053416,2.7,3730.2,3729.8,0.00909478]
[1641027053616,2.7,3730.2,3729.4,0.01136847]
[1641027054422,2.7,3730.2,3729.4,1.34775976]
[1641027054423,3.37045,3730.2,3729.4,1.34775976]
[1641027054825,3.37045,3730.2,3729.5,0.01080005]
[1641027055926,2.7,3730.2,3729.4,0.01136847]
[1641027056126,2.7,3730.2,3729.4,1.34775976]
[1641027056530,2.7,3730.2,3729.5,0.01080005]
[1641027057176,2.7,3730.2,3729.5,2.25014098]
[1641027057572,2.7,3730.2,3729.4,1.33639129]
[1641027057573,2.7,3730.2,3729.6,0.01023163]
[1641027061125,2.7,3730.2,3729.6,1.34662292]
[1641027061527,2.7,3730.2,3729.7,0.0096632]
[1641027062127,2.7,3730.2,3729.7,1.34605449]
[1641027062526,2.7,3730.2,3729.8,0.00909478]
[1641027062729,2.7,3730.2,3729.9,1.33639129]
[1641027063129,2.7,3730.2,3730.0,0.00795793]
[1641027063930,2.7,3730.2,3729.8,0.00909478]
[1641027064167,2.7,3730.2,3729.8,1.34548607]
[1641027064671,3.37043,3730.2,3729.8,1.34548607]
[1641027064871,2.7,3730.2,3729.8,1.34548607]
[1641027068013,2.7,3730.2,3729.8,0.00909478]
[1641027068912,3.37043,3730.2,3729.8,0.00909478]
[1641027075284,3.37043,3730.2,3729.6,1.33639129]
[1641027075285,3.37043,3730.2,3729.7,0.0096632]
[1641027076720,3.37043,3730.2,3729.6,0.01023163]
[1641027076920,3.37043,3730.2,3729.6,1.34662292]
[1641027077328,3.37043,3730.2,3729.7,0.0096632]
[1641027077928,1.16564251,3730.1,3729.7,0.0096632]
[1641027078130,1.16564251,3730.1,3729.5,1.33639129]
[1641027078131,0.67052,3729.9,3729.6,0.01023163]
[1641027078328,1.76285884,3729.9,3729.6,0.01023163]
[1641027078525,1.97052,3729.9,3729.6,0.01023163]
[1641027078926,2.64113,3729.9,3729.6,0.01023163]
[1641027079168,0.67073,3729.7,3729.4,0.01136847]
[1641027079372,0.97073,3729.7,3729.3,0.0119369]
[1641027079570,2.27073,3729.7,3729.3,0.0119369]
[1641027079772,0.6,3729.7,3729.3,0.0119369]
[1641027079973,1.0,3729.7,3729.3,0.0119369]
[1641027080172,0.67073,3729.3,3728.9,0.01421059]
[1641027080671,0.97073,3729.3,3728.9,0.01421059]
[1641027080871,0.3,3729.3,3728.9,0.01421059]
[1641027081075,1.5446062,3729.5,3728.9,0.01421059]
[1641027081273,0.67071,3729.3,3728.9,0.01421059]
[1641027081472,1.2311621,3729.2,3728.9,0.01421059]
[1641027081672,1.64141,3729.2,3728.9,0.01421059]
[1641027081873,1.24970837,3729.1,3728.9,0.01421059]
[1641027082072,1.94141,3729.2,3728.9,0.01421059]
[1641027082476,3.84475964,3729.2,3728.9,0.01421059]
[1641027082771,1.67074,3729.1,3728.9,0.01421059]
[1641027083016,1.97074,3729.1,3728.9,0.01421059]
[1641027085820,3.66610621,3729.1,3728.9,0.01421059]
[1641027086020,1.68940653,3729.0,3728.9,0.01421059]
[1641027086222,1.68716447,3729.0,3728.9,0.01421059]
[1641027086420,1.98716447,3729.0,3728.9,0.01421059]
[1641027086667,2.27074,3729.1,3728.9,0.01421059]
[1641027086868,1.70370268,3729.0,3728.9,0.01421059]
[1641027087267,2.27074,3729.1,3728.9,0.01421059]
[1641027087468,3.97150953,3729.1,3728.9,0.01421059]
[1641027087776,0.67074,3729.1,3728.9,0.01421059]
[1641027094374,1.97074,3729.1,3728.9,0.01421059]
[1641027094577,2.76557012,3729.1,3728.9,0.01421059]
[1641027094778,4.91539397,3729.0,3728.9,0.01421059]
[1641027094980,5.91539397,3729.0,3728.9,0.01421059]
[1641027095177,3.06539397,3729.0,3728.9,0.01421059]
[1641027096584,3.10938384,3729.0,3728.9,0.01421059]
[1641027097583,3.10938384,3729.0,3728.8,3.19315167]
[1641027097584,3.8,3728.9,3728.8,3.19315167]
[1641027097783,5.60402762,3728.9,3728.8,3.19315167]
[1641027098038,7.57492762,3728.9,3728.8,3.19315167]
[1641027098642,3.77492762,3728.9,3728.8,3.19315167]
[1641027099250,1.9709,3728.9,3728.8,3.19315167]
[1641027100349,3.73724228,3728.9,3728.8,3.19315167]
[1641027100948,1.9709,3728.9,3728.8,3.19315167]
[1641027101347,0.91319756,3728.8,3728.4,0.0691441]
[1641027101549,0.97084,3728.7,3728.4,0.0691441]
[1641027101789,0.97086,3728.6,3728.5,0.00227369]
[1641027103598,0.67089,3728.4,3728.1,0.06914472]
[1641027104097,2.27089,3728.4,3728.2,0.00397897]
[1641027104297,1.27089,3728.4,3728.2,0.00397897]
[1641027104500,2.27089,3728.4,3728.2,0.00397897]
[1641027105624,2.27089,3728.4,3727.3,3.6824]
[1641027105625,0.67093,3727.9,3727.4,0.00852635]
[1641027106029,0.3,3727.9,3727.4,0.00852635]
[1641027106426,1.64185,3728.0,3727.3,0.00909478]
[1641027106427,0.76798402,3727.4,3727.3,0.00909478]
[1641027106824,0.76798402,3727.4,3727.2,0.0096632]
[1641027108924,0.67096,3727.3,3727.2,0.0096632]
[1641027110986,0.67096,3727.3,3726.7,0.01250532]
[1641027112489,0.67096,3727.3,3726.2,3.09644511]
[1641027112690,0.67096,3727.3,3726.2,4.4328364]
[1641027112691,0.00284212,3727.2,3726.2,4.4328364]
[1641027112940,0.67104,3726.9,3726.3,0.00227369]
[1641027113143,0.67104,3726.9,3726.3,1.33866498]
[1641027113342,0.3,3726.9,3726.3,1.33866498]
[1641027113539,0.6,3726.9,3726.4,0.00170527]
[1641027113743,0.3022737,3727.1,3726.4,0.00170527]
[1641027113938,1.34225,3726.8,3726.4,0.00170527]
[1641027114138,1.64225,3726.8,3726.4,0.00170527]
[1641027114341,0.3,3726.8,3726.4,0.00170527]
[1641027114542,0.00170527,3727.0,3726.4,0.00170527]
[1641027114942,0.00113685,3726.9,3726.4,0.00170527]
[1641027115142,0.00113685,3726.9,3726.1,0.00341054]
[1641027115343,0.67108,3726.7,3726.3,1.33639129]
[1641027115745,0.67108,3726.7,3726.4,0.00170527]
[1641027116704,0.97108,3726.7,3726.4,0.00170527]
[1641027117195,1.97108,3726.7,3726.4,0.00170527]
[1641027117394,1.97108,3726.7,3726.1,0.00341054]
[1641027117395,0.97108,3726.7,3726.1,0.00341054]
[1641027117596,1.3,3726.7,3726.1,0.00341054]
[1641027117795,0.67121,3726.4,3726.1,0.00341054]
[1641027117996,0.97121,3726.4,3726.0,0.00397896]
[1641027118196,0.3,3726.4,3726.0,0.00397896]
[1641027118396,0.86515278,3726.3,3726.0,0.00397896]
[1641027118800,0.3,3726.2,3726.0,0.00397896]
[1641027119602,0.97122,3726.2,3726.0,0.00397896]
[1641027120201,1.27122,3726.2,3726.0,0.00397896]
[1641027120427,2.27122,3726.2,3726.0,0.00397896]
[1641027120630,2.27122,3726.2,3725.7,0.00568423]
[1641027120631,1.27122,3726.2,3725.7,0.00568423]
[1641027120830,0.67125,3726.0,3725.7,0.00568423]
[1641027121029,0.97125,3726.0,3725.6,0.00625266]
[1641027121431,1.27125,3726.0,3725.6,0.00625266]
[1641027122031,1.27125,3726.0,3725.5,0.00682108]
[1641027122228,0.67126,3725.8,3725.3,0.00795793]
[1641027124175,0.3,3726.0,3725.3,1.34434922]
[1641027124378,2.7,3725.8,3725.3,1.34434922]
[1641027124579,3.0,3725.8,3725.4,0.0073895]
[1641027125278,3.0,3725.8,3725.3,0.00795793]
[1641027125679,3.67125,3725.8,3725.3,0.00795793]
[1641027126078,3.0,3725.8,3725.3,0.00795793]
[1641027126480,2.7,3725.8,3724.9,0.01023162]
[1641027127679,3.0,3725.8,3724.9,0.01023162]
[1641027128329,3.67125,3725.8,3724.9,0.01023162]
[1641027128627,3.0,3725.8,3724.9,0.01023162]
[1641027129230,3.3,3725.8,3724.9,0.01023162]
[1641027130631,1.5228262,3725.7,3724.9,0.01023162]
[1641027130830,1.00043965,3725.1,3724.9,0.01023162]
[1641027131431,1.00043965,3725.1,3724.6,0.01193689]
[1641027131712,1.67180965,3725.1,3724.6,0.01193689]
[1641027132112,1.00043965,3725.1,3724.2,0.01421058]
[1641027138037,0.70086157,3725.7,3724.2,0.01421058]
[1641027138237,0.70086157,3725.7,3724.1,2.47683313]
[1641027138238,1.00086157,3725.7,3724.1,2.47683313]
[1641027138437,1.00086157,3725.7,3724.1,0.10241055]
[1641027138640,0.00795792,3725.6,3724.1,1.10241055]
[1641027138838,0.67131,3725.4,3724.1,1.10241055]
[1641027139037,0.67131,3725.4,3724.1,0.10241055]
[1641027139281,0.82517405,3724.9,3724.1,0.10241055]
[1641027139687,0.00341054,3724.8,3724.1,0.10241055]
[1641027140085,0.00284211,3724.7,3724.1,0.10241055]
[1641027140488,0.00227369,3724.6,3724.1,0.10241055]
[1641027140884,0.00170527,3724.5,3724.1,0.10241055]
[1641027141285,0.82517405,3724.9,3724.1,0.10241055]
[1641027141286,0.00113684,3724.4,3724.1,0.10241055]
[1641027141685,0.00341054,3724.8,3724.1,0.10241055]
[1641027141886,0.00341054,3724.8,3723.8,0.0573]
[1641027142087,0.00284211,3724.7,3723.8,0.0573]
[1641027142284,0.00284211,3724.7,3723.9,0.00170527]
[1641027142484,0.00227369,3724.6,3723.9,0.00170527]
[1641027142785,0.00170527,3724.5,3723.9,0.00170527]
[1641027143225,0.00113684,3724.4,3723.9,0.00170527]
[1641027143633,0.00341054,3724.8,3723.9,0.00170527]
[1641027144033,0.00284211,3724.7,3723.9,0.00170527]
[1641027144434,2.7,3724.5,3723.9,0.00170527]
[1641027144834,0.00113684,3724.4,3723.9,0.00170527]
[1641027145034,0.00113684,3724.4,3723.7,0.00284212]
[1641027146236,0.00113684,3724.4,3723.6,0.00341054]
[1641027147077,1.00367167,3723.7,3723.6,0.00341054]